[Event "AUT Bundesliga 2021-22"]
[Site "Graz"]
[Date "2022.04.21"]
[Round "9.13"]
[White "Neugebauer, Martin"]
[Black "Haba, Petr"]
[Result "1/2-1/2"]
[ECO "B48"]
[WhiteElo "2502"]
[BlackElo "2441"]
[Annotator "TA"]
[PlyCount "143"]
[EventDate "2021.01.17"]
[EventType "team-tourn"]
[EventCountry "AUT"]
[SourceTitle "playchess.com"]
[Source "ChessBase"]
[SourceQuality "1"]
[TimeControl "40/5400+30:1800+30"]

{[%evp 17,142,0,0,-4,-7,-2,18,4,16,0,0,0,0,0,0,0,0,0,175,38,48,43,53,37,41,43,89,88,81,92,87,95,94,74,117,117,117,118,123,123,126,129,145,68,68,68,68,68,68,75,77,77,89,31,34,0,0,0,0,0,0,0,0,0,0,0,0,0,0,0,0,0,0,0,0,0,0,0,0,0,0,0,0,0,0,0,0,0,0,0,0,0,0,0,0,0,0,0,0,0,0,0,0,0,0,0,0,0,0,0,0,0,0,0,0,0,0,0,0,0,0,0,0,0,0,0,0]} 1. e4 {[%emt 0:00:07]} c5 {[%emt 0:00:22]} 2. Nf3 {[%emt 0:00:26]} e6 {[%emt 0:00:05]} 3. d4 {[%emt 0:00:33]} cxd4 {[%emt 0:00:06]} 4. Nxd4 {[%emt 0:00:05]} Nc6 {[%emt 0:00:04]} 5. Nc3 {[%emt 0:00:38]} Qc7 {[%emt 0:00:29]} 6. Be3 {[%emt 0:00:43]} a6 {[%emt 0:00:20]} 7. f4 {[%emt 0:01:02]} b5 {[%emt 0:00:23]} 8. Nxc6 {[%emt 0:02:50]} Qxc6 {[%emt 0:00:14]} 9. Be2 {[%emt 0:02:25]} Ba3 {[%emt 0:01:05] [#]} 10. Na4 $146 {[%emt 0:07:08] B49: Sicilian: Taimanov: 5 Nc3 Qc7 6 Be3 a6 7 Be2.} ({Predecessor:} 10. Nxb5 axb5 11. bxa3 Qxe4 12. Bd4 Bb7 13. Qd3 Ne7 14. Qxe4 Bxe4 15. Bxb5 Bxc2 16. Rc1 Ba4 17. Bd3 Bc6 {0-1 (46) Ponomariov,R (2731)-Ivanchuk,V (2731) Beijing 2013}) 10... bxa4 {[%emt 0:26:35]} 11. bxa3 {[%emt 0:00:24]} Nf6 {[%emt 0:00:25]} 12. Bf3 {[%emt 0:05:02] Black should prevent Qd4.} d5 {[%emt 0:18:53]} 13. exd5 {[%emt 0:03:53]} exd5 {[%emt 0:00:05]} 14. O-O {[%emt 0:06:03][%cal Oc2c4]} O-O $1 {[%emt 0:00:15]} 15. Bd4 {[%emt 0:12:50][%cal Oc2c4]} Ne4 {[%emt 0:04:52]} 16. Re1 {[%emt 0:13:50]} Bf5 {[%emt 0:19:27]} 17. Rc1 $36 {[%emt 0:11:32][%cal Oc2c4][%mdl 2048] White has the initiative.} Nd6 {[%emt 0:09:22] [#]} (17... Rae8 $11 {and Black has nothing to worry.}) 18. Be5 {[%emt 0:09:26] This bishop pair is nice.} ({Only move:} 18. c4 $1 $18) 18... Be4 {[%emt 0:02:15]} 19. Bxe4 $1 {[%emt 0:01:16]} Nxe4 {[%emt 0:00:15]} 20. c4 $1 {[%emt 0:01:29]} dxc4 {[%emt 0:02:38]} 21. Qd4 {[%emt 0:00:16][%csl LRc4,LRe4,LRg7]} f6 {[%emt 0:01:15]} 22. Qxe4 $16 {[%emt 0:01:28]} Qxe4 {[%emt 0:00:28]} 23. Rxe4 {[%emt 0:00:05]} fxe5 {[%emt 0:02:21]} 24. fxe5 {[%emt 0:00:09][%mdl 4096] Endgame KRR-KRR} Rad8 {[%emt 0:00:43]} 25. h4 {[%emt 0:00:59]} h5 {[%emt 0:03:09]} 26. Rcxc4 {[%emt 0:00:45]} Rd1+ {[%emt 0:06:01]} 27. Kh2 {[%emt 0:00:02]} Re8 {[%emt 0:00:21]} 28. Rc6 {[%emt 0:05:24] Prevents Re6.} Rd5 {[%emt 0:00:05]} 29. e6 {[%emt 0:00:27]} a5 {[%emt 0:00:02]} 30. Rxa4 {[%emt 0:04:06] &Bianco is more active.} (30. Kg3 $16) 30... Re5 $14 {[%emt 0:00:35]} 31. Kg3 {[%emt 0:00:17]} R5xe6 {[%emt 0:01:52]} 32. Rxe6 {[%emt 0:00:11]} Rxe6 {[%emt 0:00:01]} 33. Rxa5 {[%emt 0:02:36] KR-KR} Re3+ {[%emt 0:01:12]} 34. Kf4 {[%emt 0:00:16]} Re2 {[%emt 0:00:09][%csl LRa2,LRg2]} 35. Rg5 {[%emt 0:04:22]} ({Better is} 35. g3 $16 Rf2+ 36. Ke3) 35... Rxa2 {[%emt 0:00:12]} 36. Rg3 {[%emt 0:00:02] [#] And now Kg5 would win.} Kh7 $1 {[%emt 0:01:06] The position is equal.} 37. Ke4 {[%emt 0:00:52]} (37. Kg5 $5 {[%cal Rg5h5]}) 37... g6 {[%emt 0:00:34]} 38. Kd5 {[%emt 0:00:24]} Rf2 {[%emt 0:00:16]} 39. Ke4 {[%emt 0:02:00]} Ra2 {[%emt 0:00:15]} 40. Kd4 {[%emt 0:00:00] Strongly threatening Kc5.} Rf2 {[%emt 0:00:00]} 41. Kc3 {[%emt 0:02:47]} Rf4 {[%emt 0:03:40]} 42. Kb3 {[%emt 0:03:51] Hoping for a4.} Rxh4 {[%emt 0:00:06]} 43. a4 {[%emt 0:00:06]} Re4 {[%emt 0:01:04]} 44. a5 {[%emt 0:00:38]} h4 {[%emt 0:09:11]} 45. Rg5 {[%emt 0:01:43] a6 is the strong threat.} Kh6 $1 {[%emt 0:02:34]} 46. Rc5 {[%emt 0:00:08] Threatens to win with a6.} Re6 {[%emt 0:02:12]} 47. Rb5 {[%emt 0:07:18]} Re3+ {[%emt 0:00:07]} 48. Kb4 {[%emt 0:01:41] aiming for a6.} Re4+ {[%emt 0:06:19]} 49. Ka3 {[%emt 0:01:05] Black must now prevent a6.} Re1 {[%emt 0:01:27]} 50. Rb2 {[%emt 0:03:36]} Kh5 {[%emt 0:02:20]} 51. a6 {[%emt 0:01:57]} Re6 {[%emt 0:00:36]} 52. Rb5+ {[%emt 0:00:06]} Kg4 {[%emt 0:00:02]} (52... g5 $5 53. Ra5 Kg4 $14) 53. Ra5 {[%emt 0:00:15]} Re8 {[%emt 0:00:03]} 54. Kb4 {[%emt 0:03:18]} g5 {[%emt 0:02:42]} 55. Ra3 {[%emt 0:00:36]} Rf8 {[%emt 0:01:09]} 56. Kc5 {[%emt 0:02:11] a7 would kill now.} Rf5+ {[%emt 0:03:44]} 57. Kd6 {[%emt 0:00:24] Intending Ke7 and mate.} Rf8 {[%emt 0:00:01]} 58. a7 {[%emt 0:02:52] White threatens Kc5 and mate.} Ra8 {[%emt 0:00:03]} 59. Kc5 {[%emt 0:00:38]} Rxa7 $1 {[%emt 0:01:27]} 60. Rxa7 $11 {[%emt 0:00:04] White wants to mate with Ra3. KR-KPP} Kg3 {[%emt 0:00:04]} 61. Rg7 {[%emt 0:01:28]} Kxg2 {[%emt 0:00:39]} 62. Rxg5+ {[%emt 0:00:04] KR-KP} Kf3 {[%emt 0:00:04]} (62... Kh3 {leads to mate.} 63. Kd4 Kh2 64. Ke3 Kh1 65. Kf2 Kh2 66. Rg4 Kh3 67. Rc4 Kh2 68. Rxh4#) 63. Rh5 {[%emt 0:00:12]} Kg3 {[%emt 0:00:24]} 64. Kd4 {[%emt 0:00:06]} h3 {[%emt 0:00:03]} 65. Ke3 {[%emt 0:00:05]} Kg2 {[%emt 0:00:10]} 66. Rg5+ {[%emt 0:00:33]} Kf1 $1 {[%emt 0:00:08]} 67. Rf5+ {[%emt 0:02:05]} Kg2 {[%emt 0:00:21]} 68. Rf2+ {[%emt 0:00:17]} Kg3 {[%emt 0:01:30]} 69. Rf8 {[%emt 0:00:27]} Kg2 $1 {[%emt 0:00:05]} 70. Ke2 {[%emt 0:01:45] Threatening mate with Rg8+.} h2 {[%emt 0:00:14]} 71. Rg8+ {[%emt 0:00:09]} Kh1 {[%emt 0:00:06]} 72. Kf2 {Weighted Error Value: White=0.08 (flawless) /Black=0.08 (flawless)} 1/2-1/2

[Event "AUT Bundesliga 2021-22"]
[Site "Graz"]
[Date "2022.04.21"]
[Round "9.14"]
[White "Kilgus, Georg"]
[Black "Dobosz, Henryk"]
[Result "1/2-1/2"]
[ECO "C50"]
[WhiteElo "2415"]
[BlackElo "2384"]
[Annotator "TA"]
[PlyCount "94"]
[EventDate "2021.01.17"]
[EventType "team-tourn"]
[EventCountry "AUT"]
[SourceTitle "playchess.com"]
[Source "ChessBase"]
[SourceQuality "1"]
[TimeControl "40/5400+30:1800+30"]

{[%evp 12,94,20,16,15,0,21,23,18,18,22,25,32,37,38,35,40,46,37,2,33,0,0,0,0,0,0,0,0,0,0,-11,-10,-14,0,-8,-8,-3,-8,0,0,0,0,0,0,0,0,-119,-107,-105,-108,-116,0,0,0,0,0,0,0,0,0,0,0,0,0,0,0,0,0,0,0,0,0,0,0,0,0,0,0,0,0,0,0,0,0]} 1. e4 {[%emt 0:00:03]} e5 {[%emt 0:00:48]} 2. Nf3 {[%emt 0:00:06]} Nc6 {[%emt 0:00:10]} 3. Bc4 {[%emt 0:00:10]} Bc5 {[%emt 0:00:43]} 4. Nc3 {[%emt 0:02:04]} Nf6 {[%emt 0:01:42]} 5. d3 {[%emt 0:00:07]} h6 {[%emt 0:04:11]} 6. O-O {[%emt 0:02:43]} a6 {[%emt 0:01:33] Recently 6...0-0 got a lot of attention.} 7. a4 {[%emt 0:02:32]} d6 {[%emt 0:00:43] C50: Hungarian Defence and Giuoco Pianissimo.} 8. Be3 {[%emt 0:00:03]} Ba7 {[%emt 0:05:29]} 9. Bxa7 {[%emt 0:06:37]} Rxa7 {[%emt 0:00:11] White has an edge.} 10. h3 {[%emt 0:00:02]} O-O {[%emt 0:02:50]} 11. d4 {[%emt 0:05:53] [#]} Ra8 $146 {[%emt 0:17:19]} ({Predecessor:} 11... exd4 12. Nxd4 Ne5 13. Ba2 c5 14. Nf3 Nxf3+ 15. Qxf3 Be6 16. Rad1 Qb6 17. Bxe6 fxe6 {1-0 (45) Plotkin,V (2403)-Sapozhnikov,R (2459) Toronto 2011}) 12. dxe5 {[%emt 0:20:38]} Nxe5 {[%emt 0:02:57]} 13. Nxe5 {[%emt 0:01:20]} dxe5 {[%emt 0:00:13]} 14. Qxd8 {[%emt 0:05:23]} Rxd8 {[%emt 0:00:15]} 15. Rad1 {[%emt 0:16:17]} Bd7 {[%emt 0:15:01]} (15... Rd4 $5 {[%cal Rd4c4]} 16. b3 Be6 $11) 16. f4 {[%emt 0:10:48]} Be6 {[%emt 0:00:31]} 17. Rxd8+ {[%emt 0:01:50]} Rxd8 {[%emt 0:00:11]} 18. Bxe6 {[%emt 0:00:02]} fxe6 {[%emt 0:00:11]} 19. fxe5 $11 {[%emt 0:00:02][%mdl 4096] Endgame KRN-KRN} Nd7 {[%emt 0:02:18]} 20. Rd1 {[%emt 0:00:31]} Kf7 {[%emt 0:00:06]} 21. a5 {[%emt 0:02:17]} Ke7 {[%emt 0:02:49]} 22. Na4 {[%emt 0:00:02]} Rb8 {[%emt 0:01:40]} ({Don't do} 22... Nxe5 23. Rxd8 Kxd8 24. Nc5 $16) 23. b4 {[%emt 0:06:30]} b6 {[%emt 0:01:32]} 24. axb6 {[%emt 0:02:51]} cxb6 {[%emt 0:00:21]} 25. Rd6 {[%emt 0:00:19]} Nxe5 {[%emt 0:19:06]} 26. Rxb6 {[%emt 0:00:22]} Rxb6 {[%emt 0:00:14]} 27. Nxb6 {[%emt 0:00:03] KN-KN} Kd6 {[%emt 0:00:07]} 28. Na4 {[%emt 0:02:40]} Kc6 {[%emt 0:03:39]} 29. c3 {[%emt 0:01:02]} (29. Nb2 $11 {remains equal.}) 29... Nd3 $17 {[%emt 0:02:50][%mdl 1024] Threatens to win with ...Kb5. Black has strong compensation.} 30. Kf1 {[%emt 0:02:06]} Kb5 {[%emt 0:00:07]} 31. Ke2 {[%emt 0:00:21] [#]} Nc1+ {[%emt 0:01:31]} (31... Nxb4 $1 $17 {[%mdl 512]} 32. Nb2 Nc6) 32. Kd1 $11 {[%emt 0:00:38] The position is equal.} Na2 {[%emt 0:01:39]} 33. Nc5 {[%emt 0:00:17] aiming for Kc2.} Nxc3+ {[%emt 0:00:22]} 34. Kd2 {[%emt 0:03:06]} Kxb4 {[%emt 0:01:12]} 35. Nxa6+ {[%emt 0:00:45]} Kc4 {[%emt 0:00:06]} 36. Ke3 {[%emt 0:00:26]} Nb5 {[%emt 0:04:50]} 37. h4 {[%emt 0:01:15]} e5 {[%emt 0:01:15]} 38. h5 {[%emt 0:00:34]} Nd4 {[%emt 0:01:51]} 39. Nc7 {[%emt 0:01:33]} Kc3 {[%emt 0:00:47]} 40. Nd5+ {[%emt 0:00:00]} Kc4 {[%emt 0:00:00]} 41. Ne7 {[%emt 0:06:12]} Kc5 {[%emt 0:01:19]} 42. Nf5 {[%emt 0:04:28] [#] Strongly threatening Nxd4.} Ne6 {[%emt 0:00:29]} 43. g3 {[%emt 0:00:35]} Kc6 {[%emt 0:02:11]} 44. Kd3 {[%emt 0:00:32]} Nc5+ {[%emt 0:00:23]} 45. Ke3 {[%emt 0:00:25]} Ne6 {[%emt 0:00:11]} 46. Kd3 {[%emt 0:00:16]} Nc5+ {[%emt 0:00:09]} 47. Ke3 {[%emt 0:00:02]} Ne6 {Weighted Error Value: White=0.10 (very precise) /Black=0.06 (flawless)} 1/2-1/2

[Event "AUT Bundesliga 2021-22"]
[Site "Graz"]
[Date "2022.04.21"]
[Round "9.15"]
[White "Mira, Helene"]
[Black "Schwabeneder, Florian"]
[Result "1/2-1/2"]
[ECO "E20"]
[WhiteElo "2090"]
[BlackElo "2437"]
[Annotator "TA"]
[PlyCount "99"]
[EventDate "2021.01.17"]
[EventType "team-tourn"]
[EventCountry "AUT"]
[SourceTitle "playchess.com"]
[Source "ChessBase"]
[SourceQuality "1"]
[TimeControl "40/5400+30:1800+30"]

{[%evp 17,99,0,7,0,6,7,1,6,65,72,68,47,47,43,60,41,63,56,58,47,60,27,28,37,36,37,38,25,24,0,0,0,0,-68,-36,-78,-78,-62,-57,-61,0,-7,16,-108,-55,-108,-117,-216,-138,-206,-204,-317,-325,-303,-299,-444,-131,-143,-124,-129,-128,-115,-129,-120,-113,-119,-88,-103,-13,-20,-19,-22,-22,-30,-30,-30,-30,-47,-47,-43,-48,-61,0,0]} 1. d4 {[%emt 0:00:11]} Nf6 {[%emt 0:00:29]} 2. c4 {[%emt 0:00:25]} e6 {[%emt 0:00:35]} 3. Nc3 {[%emt 0:00:43]} Bb4 {[%emt 0:02:03]} 4. Bd2 {[%emt 0:01:22]} d5 {[%emt 0:00:50]} 5. e3 {[%emt 0:00:06]} O-O {[%emt 0:00:09]} 6. Nf3 {[%emt 0:00:09]} b6 {[%emt 0:00:30]} 7. Bd3 {[%emt 0:00:34]} dxc4 {[%emt 0:08:47]} 8. Bxc4 {[%emt 0:00:11]} Bb7 {[%emt 0:00:06]} 9. O-O {[%emt 0:00:11]} Nbd7 {[%emt 0:01:42]} 10. Qe2 {[%emt 0:07:45] E52: Nimzo-Indian: Rubinstein: 4...0-0 5 Nf3 d5 6 Bd3 b6.} a6 {[%emt 0:11:44]} 11. a3 {[%emt 0:02:35]} Bd6 {[%emt 0:02:55]} 12. e4 {[%emt 0:00:13]} e5 {[%emt 0:00:09]} (12... c5 $1 $11) 13. d5 $14 {[%emt 0:00:31] [#] &Bianco is more active.} Re8 $146 {[%emt 0:08:27]} ({Predecessor:} 13... b5 14. Ba2 c6 15. dxc6 Bxc6 16. Rfd1 Bc5 17. Bg5 Qb6 18. Bxf6 Nxf6 19. Nxe5 Bb7 {0-1 (65) Quiroga,F (2300)-Bronstein,L (2415) Buenos Aires 1996}) 14. g3 {[%emt 0:05:50]} b5 {[%emt 0:07:18]} 15. Ba2 {[%emt 0:00:31]} Nf8 {[%emt 0:06:56]} 16. Nh4 {[%emt 0:00:11]} Bc8 {[%emt 0:00:12]} 17. b4 {[%emt 0:04:35]} Ng6 {[%emt 0:01:02]} 18. Nxg6 {[%emt 0:00:20]} hxg6 {[%emt 0:00:13]} 19. Bg5 {[%emt 0:07:05]} Bh3 {[%emt 0:05:47]} 20. Rfc1 {[%emt 0:00:32]} Qd7 {[%emt 0:00:22]} 21. f3 {[%emt 0:00:11]} Nh7 {[%emt 0:03:57]} 22. Be3 {[%emt 0:00:09]} f5 {[%emt 0:02:44]} 23. Nd1 {[%emt 0:00:05]} fxe4 {[%emt 0:00:41]} 24. fxe4 {[%emt 0:00:23]} Bg4 {[%emt 0:00:14]} 25. Qg2 {[%emt 0:00:50]} (25. Qd3 $11) 25... Rf8 {[%emt 0:00:42]} (25... a5 $5 {[%cal Re8f8]}) 26. Nf2 {[%emt 0:00:07] Inhibits Bh3.} Bf3 {[%emt 0:00:10]} 27. Qh3 {[%emt 0:01:04]} Qxh3 {[%emt 0:01:14]} 28. Nxh3 {[%emt 0:00:09][%cal Oc1c7]} Bxe4 {[%emt 0:00:32]} (28... a5 $1 $15 29. Bd2 (29. Nf2 $2 axb4 30. axb4 Ra3 $19) 29... axb4 30. Bxb4 Nf6) 29. Nf2 {[%emt 0:00:16]} Bf3 {[%emt 0:00:46] [#]} 30. Bc5 {[%emt 0:02:28]} (30. Rxc7 $1 $11 Bxc7 (30... a5 31. Bc5) 31. d6+ Kh8 32. dxc7) 30... Nf6 $36 {[%emt 0:02:29][%mdl 2048] Black has the initiative.} ({Better is} 30... g5 $17 31. Bb3 Nf6) 31. Bxd6 {[%emt 0:00:17]} (31. Rc3 $1 $15 e4 32. Re1) 31... cxd6 $17 {[%emt 0:00:02]} 32. Rc6 {[%emt 0:00:09]} (32. Rc3 $17 e4 33. Re1) 32... Rfd8 {[%emt 0:00:19]} ({Weaker is} 32... Bxd5 33. Bxd5+ Nxd5 34. Rxd6 $11) ({Don't play} 32... Nxd5 33. Rc3 (33. Rxd6 Rad8 $16) 33... Rad8 34. Rxf3 $1 {[%mdl 512]} Rxf3 35. Bxd5+ Rf7 36. Rc1 $18 (36. Bxf7+ Kxf7 37. Rc1 Ke6 $18)) 33. Rac1 {[%emt 0:00:33]} (33. Re1 $17) 33... a5 $19 {[%emt 0:04:58]} ({And not} 33... Bxd5 34. Bxd5+ Nxd5 35. Ne4 $15) 34. R1c3 {[%emt 0:05:27]} (34. bxa5 $142 Rxa5 35. R1c3 Bxd5 36. Bxd5+ Nxd5 37. Rd3) 34... Bxd5 {[%emt 0:01:42]} 35. Bxd5+ {[%emt 0:00:27]} Nxd5 {[%emt 0:00:08]} 36. Rd3 {[%emt 0:00:12] [#]} (36. Rb3 $142 axb4 37. axb4) 36... Nf6 $2 {[%emt 0:00:15]} (36... axb4 $1 $19 {is more deadly.} 37. Rxd5 bxa3) 37. Rdxd6 $17 {[%emt 0:01:01]} Rxd6 {[%emt 0:00:17]} 38. Rxd6 {[%emt 0:00:08]} axb4 {[%emt 0:00:38]} 39. axb4 {[%emt 0:00:09][%mdl 4096] Endgame KRN-KRN} Ra1+ $1 {[%emt 0:03:42]} 40. Kg2 {[%emt 0:00:00] [#]} Ra2 $1 {[%emt 0:00:00]} 41. Kg1 {[%emt 0:02:16]} e4 {[%emt 0:03:01]} 42. Rb6 {[%emt 0:05:09] [#]} Rd2 {[%emt 0:05:13]} ({Black should play} 42... e3 $1 $17 {[%cal Re3f2]} 43. Nd3 Rd2) 43. Nh3 $11 {[%emt 0:05:13]} e3 {[%emt 0:09:57] aiming for ...Rd1+.} 44. Ng5 {[%emt 0:18:51] Rb8+ would kill now.} Kf8 {[%emt 0:00:41] Hoping for ...Rd1+.} 45. Re6 {[%emt 0:07:38]} Rb2 {[%emt 0:04:16]} 46. Rxe3 {[%emt 0:01:42]} Rxb4 {[%emt 0:00:09]} 47. Kg2 {[%emt 0:03:03]} Rb2+ {[%emt 0:02:01]} 48. Kf3 {[%emt 0:00:13]} b4 {[%emt 0:00:27]} 49. h4 {[%emt 0:00:22]} b3 {[%emt 0:01:32]} ({Black should try} 49... Ra2 $15) 50. Ne6+ {[%emt 0:01:11] And White is the lucky defender.  Weighted Error Value: White=0.25 (precise) /Black=0.27 (precise)} 1/2-1/2

[Event "AUT Bundesliga 2021-22"]
[Site "Graz"]
[Date "2022.04.21"]
[Round "9.16"]
[White "Leisch, Lukas"]
[Black "Kozissnik, Christian"]
[Result "1-0"]
[ECO "A05"]
[WhiteElo "2403"]
[BlackElo "2018"]
[Annotator "TA"]
[PlyCount "121"]
[EventDate "2021.01.17"]
[EventType "team-tourn"]
[EventCountry "AUT"]
[SourceTitle "playchess.com"]
[Source "ChessBase"]
[SourceQuality "1"]
[TimeControl "40/5400+30:1800+30"]

{[%evp 11,121,0,0,0,2,0,0,-2,0,-35,-21,-22,-19,-10,0,0,0,-28,-11,-37,3,-81,-68,-73,-65,-85,-87,-115,-114,-189,-94,-98,-79,-96,-60,-58,-22,-38,-37,-39,4,0,17,10,14,3,44,42,36,29,40,0,43,41,45,56,41,38,21,35,142,36,131,110,115,0,331,300,515,495,780,719,920,878,827,827,29968,29969,29968,29971,29970,29971,29972,29973,29973,29974,29974,29974,29975,29976,29976,29973,29976,29977,29979,29980,29980,29981,29981,29982,29982,29983,29984,29985,29985,29986,29986,29987,29987,29985,29985,29983]} 1. Nf3 {[%emt 0:00:03]} Nf6 {[%emt 0:01:12]} 2. b3 {[%emt 0:00:39]} g6 {[%emt 0:01:30]} 3. Bb2 {[%emt 0:00:09]} Bg7 {[%emt 0:00:02]} 4. g3 {[%emt 0:01:20]} O-O {[%emt 0:00:39]} 5. Bg2 {[%emt 0:00:08]} c5 {[%emt 0:05:03]} 6. O-O {[%emt 0:07:27]} d5 {[%emt 0:05:48]} 7. e3 {[%emt 0:01:57] A05: Réti Opening: 1 Nf3 Nf6.} Bg4 {[%emt 0:01:38]} 8. h3 {[%emt 0:00:39]} Bxf3 {[%emt 0:03:50]} 9. Qxf3 {[%emt 0:01:24] The position is equal.} Nc6 {[%emt 0:01:42] [#]} 10. d4 $146 {[%emt 0:05:00]} ({Predecessor:} 10. d3 e5 11. Nd2 Qe7 12. e4 d4 13. a4 Ne8 14. Nc4 Nd6 15. Qe2 Nxc4 16. bxc4 {½-½ (63) Ooi,Z (2123)-Javanbakht,N (2472) Chess.com INT 2020}) 10... cxd4 {[%emt 0:02:43]} (10... Ne4 $5 {[%cal Rc5d4]} 11. c4 e6 $15) 11. exd4 {[%emt 0:00:12]} Qd7 {[%emt 0:01:10]} 12. Nd2 {[%emt 0:04:10]} e6 {[%emt 0:05:03]} 13. Qe2 {[%emt 0:12:40]} Rfc8 {[%emt 0:18:09]} 14. Kh2 {[%emt 0:01:11]} b5 {[%emt 0:04:28]} 15. c3 {[%emt 0:09:13]} b4 {[%emt 0:05:31]} 16. cxb4 {[%emt 0:01:17]} (16. c4 $1 $11) 16... Nxb4 {[%emt 0:00:06]} 17. a3 $1 {[%emt 0:00:49] [#]} Nc6 {[%emt 0:17:52]} (17... Rc2 18. Rab1 Nc6 19. Rfc1 (19. Qd3 Rxb2 20. Rxb2 Nxd4 $11) 19... Rxc1 20. Rxc1 $11) 18. b4 {[%emt 0:00:38]} Ne8 {[%emt 0:00:18][%cal Bf6e8,Be8d6,Bd6b7][%mdl 32]} 19. Qd3 {[%emt 0:02:26]} Nd6 {[%emt 0:00:39]} 20. Rac1 {[%emt 0:01:50] [#]} (20. Rfb1 $17 {was worth a try.}) 20... Ne7 {[%emt 0:02:50]} (20... a5 $1 $19 21. bxa5 (21. b5 $2 Nxb5 22. Nf3 Nd6 $19) 21... Rxa5) 21. Rfd1 {[%emt 0:10:20]} Rxc1 {[%emt 0:01:19]} 22. Rxc1 {[%emt 0:04:15]} Rc8 {[%emt 0:00:02]} 23. Rc5 {[%emt 0:06:31]} Nb7 {[%emt 0:02:18]} 24. Rc3 {[%emt 0:02:05]} Rxc3 {[%emt 0:01:59]} 25. Qxc3 {[%emt 0:00:09]} Qc6 {[%emt 0:00:13]} 26. Bf1 {[%emt 0:03:43]} Kf8 {[%emt 0:04:59]} 27. b5 {[%emt 0:03:45]} Qxc3 {[%emt 0:00:08]} 28. Bxc3 {[%emt 0:00:02]} Nf5 {[%emt 0:02:07]} 29. Nb3 {[%emt 0:01:51]} Ke8 {[%emt 0:00:17]} 30. g4 {[%emt 0:03:13]} Nfd6 {[%emt 0:00:11]} 31. f3 {[%emt 0:00:16]} Kd7 {[%emt 0:02:19]} (31... Nc4 $5 {[%cal Rc4a3]}) 32. a4 {[%emt 0:01:01]} Nc4 {[%emt 0:00:45]} 33. Bxc4 {[%emt 0:08:12]} dxc4 $14 {[%emt 0:00:03][%mdl 4096] Endgame KBN-KBN} 34. Nd2 {[%emt 0:00:08]} Nd6 {[%emt 0:00:01]} 35. Kg3 {[%emt 0:00:11]} g5 {[%emt 0:06:11]} (35... h5 $14) 36. h4 {[%emt 0:02:24]} (36. Kf2 $16) 36... h6 {[%emt 0:00:53]} (36... gxh4+ $14 37. Kxh4 Bh6) 37. hxg5 {[%emt 0:00:55]} hxg5 {[%emt 0:00:03]} 38. Ne4 {[%emt 0:00:19]} (38. Kf2 $16) 38... Nxe4+ $2 {[%emt 0:02:54][%mdl 8192] Black is on the road to losing.} (38... Nc8 $11 {and Black stays safe.}) 39. fxe4 $11 {[%emt 0:00:02][%cal Bf3e4,Be4e5][%mdl 32] KB-KB} Kc8 $2 {[%emt 0:01:59]} (39... f6 40. e5 fxe5) 40. Kf3 $18 {[%emt 0:00:00]} Kb7 {[%emt 0:00:00]} (40... Kd7 $142 41. e5 f6) 41. e5 {[%emt 0:22:00]} a6 {[%emt 0:19:17]} 42. bxa6+ {[%emt 0:00:13]} Kxa6 {[%emt 0:00:02]} 43. Ke4 {[%emt 0:00:46] d5 is the strong threat.} f6 {[%emt 0:10:07]} 44. d5 {[%emt 0:07:44] White mates.} exd5+ {[%emt 0:01:05]} 45. Kxd5 {[%emt 0:00:02]} fxe5 {[%emt 0:00:38]} 46. Kxc4 {[%emt 0:00:01]} Bf8 {[%emt 0:00:22]} 47. Kd5 {[%emt 0:00:17]} Bh6 {[%emt 0:01:54]} 48. Bd2 {[%emt 0:01:07]} Bg7 {[%emt 0:01:10]} 49. Ke4 {[%emt 0:01:27]} Bf6 {[%emt 0:00:37]} 50. Kf5 {[%emt 0:00:12][%csl LRf6,LRg5]} Bd8 {[%emt 0:00:46]} 51. Kxe5 {[%emt 0:00:23]} Bc7+ {[%emt 0:00:12]} 52. Kf5 {[%emt 0:00:33]} Bd8 {[%emt 0:00:15]} 53. Bxg5 {[%emt 0:00:52]} Bb6 {[%emt 0:00:36]} 54. Bd2 {[%emt 0:00:22]} Bd8 {[%emt 0:00:03]} 55. Bc3 {[%emt 0:00:19]} ({Inferior is} 55. g5 Bxg5 56. Kxg5 Kb7 $11) 55... Be7 {[%emt 0:00:44]} 56. Bf6 {[%emt 0:00:11]} ({Not} 56. g5 Bxg5 57. Kxg5 Kb7 $11) 56... Bf8 {[%emt 0:00:15]} 57. g5 {[%emt 0:00:25][%cal Bg4g5,Bg5g6][%mdl 32]} Bc5 {[%emt 0:00:43]} 58. g6 {[%emt 0:00:14]} Bf8 {[%emt 0:00:15]} 59. Ke6 {[%emt 0:00:27]} Bh6 {[%emt 0:00:51]} 60. Kf7 {[%emt 0:00:23]} Ka5 {[%emt 0:00:04] [#]} 61. Bg5 $1 {[%emt 0:00:28][%mdl 512] Weighted Error Value: White=0.17 (very precise) /Black=0.41} 1-0